[Event "GrandPrix_30.05"]
[Site "Chess.com"]
[Date "2020.05.30"]
[Round "7"]
[White "Guenplen"]
[Black "GadimbayliA"]
[Result "0-1"]
[WhiteElo "2559"]
[BlackElo "2584"]
[TimeControl "600+2"]
[EndTime "11:28:57 PDT"]
[Termination "GadimbayliA won by checkmate"]

1. d4 {[%clk 0:10:01.9]} 1... d5 {[%clk 0:09:57.7]} 2. Bf4 {[%clk 0:10:02.2]}
2... Nf6 {[%clk 0:09:57.5]} 3. e3 {[%clk 0:10:03]} 3... Nc6 {[%clk 0:09:50.7]}
4. c4 {[%clk 0:09:47.8]} 4... e6 {[%clk 0:08:55.9]} 5. Nc3 {[%clk 0:09:42.3]}
5... Bd6 {[%clk 0:08:40]} 6. Bg3 {[%clk 0:09:04.7]} 6... O-O {[%clk 0:08:33.9]}
7. Nf3 {[%clk 0:09:04]} 7... Ne4 {[%clk 0:08:23.4]} 8. Bd3 {[%clk 0:08:53.6]}
8... Nxc3 {[%clk 0:07:15.5]} 9. bxc3 {[%clk 0:08:53]} 9... dxc4 {[%clk
0:07:16.1]} 10. Bxc4 {[%clk 0:08:48]} 10... b6 {[%clk 0:07:17.5]} 11. Bd3 {[%clk
0:08:17.5]} 11... Bb7 {[%clk 0:07:13.5]} 12. O-O {[%clk 0:07:55.2]} 12... Na5
{[%clk 0:07:03.2]} 13. Ne5 {[%clk 0:07:38.4]} 13... c5 {[%clk 0:06:38.1]} 14.
Qh5 {[%clk 0:07:24.6]} 14... f5 {[%clk 0:06:07.7]} 15. Rfd1 {[%clk 0:06:09.1]}
15... Qe7 {[%clk 0:05:35.9]} 16. dxc5 {[%clk 0:05:16.2]} 16... Bxc5 {[%clk
0:05:25.5]} 17. Bb5 {[%clk 0:05:09.2]} 17... a6 {[%clk 0:05:02.1]} 18. Rd7
{[%clk 0:04:34.4]} 18... Qf6 {[%clk 0:04:57.8]} 19. Be2 {[%clk 0:04:22.8]} 19...
Bc6 {[%clk 0:04:01.2]} 20. Rd2 {[%clk 0:03:42]} 20... Ba4 {[%clk 0:02:52.3]} 21.
Rf1 {[%clk 0:02:50.6]} 21... Rad8 {[%clk 0:02:24]} 22. Bh4 {[%clk 0:02:30.5]}
22... Rxd2 {[%clk 0:01:31]} 23. Bxf6 {[%clk 0:02:30.4]} 23... gxf6 {[%clk
0:01:27.4]} 24. Nc4 {[%clk 0:01:59.9]} 24... Rxe2 {[%clk 0:01:06.6]} 25. Qxe2
{[%clk 0:01:45.5]} 25... Bb5 {[%clk 0:01:06.5]} 26. Rd1 {[%clk 0:01:46.5]} 26...
Nxc4 {[%clk 0:01:01.6]} 27. Qf3 {[%clk 0:01:15.7]} 27... Ne5 {[%clk 0:01:01.2]}
28. Qb7 {[%clk 0:00:57.3]} 28... Bc4 {[%clk 0:00:31.9]} 29. h3 {[%clk
0:00:24.8]} 29... Kh8 {[%clk 0:00:32.4]} 30. Kh2 {[%clk 0:00:22.1]} 30... a5
{[%clk 0:00:22.1]} 31. f4 {[%clk 0:00:13.8]} 31... Nd3 {[%clk 0:00:10.9]} 32.
Qc7 {[%clk 0:00:05.9]} 32... Rg8 {[%clk 0:00:07.2]} 33. Qf7 {[%clk 0:00:04.9]}
33... Rf8 {[%clk 0:00:06.3]} 34. Qc7 {[%clk 0:00:04.1]} 34... e5 {[%clk
0:00:05.5]} 35. Rd2 {[%clk 0:00:03.1]} 35... e4 {[%clk 0:00:05]} 36. g4 {[%clk
0:00:02.9]} 36... Bxe3 {[%clk 0:00:04]} 37. Rxd3 {[%clk 0:00:02.5]} 37... Bxd3
{[%clk 0:00:04.4]} 38. Qe7 {[%clk 0:00:03.6]} 38... Bc5 {[%clk 0:00:04.7]} 39.
Qe6 {[%clk 0:00:04.4]} 39... e3 {[%clk 0:00:04.6]} 40. g5 {[%clk 0:00:05.3]}
40... e2 {[%clk 0:00:04.8]} 41. gxf6 {[%clk 0:00:06.6]} 41... Be4 {[%clk
0:00:04.1]} 42. f7 {[%clk 0:00:06.3]} 42... Bg1+ {[%clk 0:00:03.6]} 43. Kg3
{[%clk 0:00:07.2]} 43... e1=Q# {[%clk 0:00:05]} 0-1

[Event "GrandPrix_30.05"]
[Site "Chess.com"]
[Date "2020.05.30"]
[Round "7"]
[White "Promacherr"]
[Black "chessfreak35"]
[Result "0-1"]
[WhiteElo "2204"]
[BlackElo "2460"]
[TimeControl "600+2"]
[EndTime "11:28:57 PDT"]
[Termination "chessfreak35 won by resignation"]

1. e4 {[%clk 0:10:01.9]} 1... e5 {[%clk 0:10:00.4]} 2. Nf3 {[%clk 0:10:01.6]}
2... Nc6 {[%clk 0:10:01.8]} 3. Bb5 {[%clk 0:10:02.2]} 3... Nf6 {[%clk
0:10:03.3]} 4. O-O {[%clk 0:10:02.8]} 4... Nxe4 {[%clk 0:10:04.3]} 5. Re1 {[%clk
0:10:02.9]} 5... Nd6 {[%clk 0:10:05.6]} 6. Nxe5 {[%clk 0:10:03.9]} 6... Be7
{[%clk 0:10:07.1]} 7. Bf1 {[%clk 0:10:03.3]} 7... Nxe5 {[%clk 0:10:08]} 8. Rxe5
{[%clk 0:10:05.2]} 8... O-O {[%clk 0:10:09.5]} 9. d4 {[%clk 0:10:06]} 9... Bf6
{[%clk 0:10:10.7]} 10. Re1 {[%clk 0:09:33.2]} 10... Re8 {[%clk 0:10:11]} 11.
Rxe8+ {[%clk 0:08:57.3]} 11... Nxe8 {[%clk 0:10:08.8]} 12. d5 {[%clk 0:08:57.9]}
12... b6 {[%clk 0:10:04.7]} 13. Nd2 {[%clk 0:08:49]} 13... Nd6 {[%clk
0:09:42.6]} 14. Nf3 {[%clk 0:08:38.7]} 14... Bb7 {[%clk 0:09:42.9]} 15. c4
{[%clk 0:07:57.9]} 15... Qe7 {[%clk 0:09:40.1]} 16. Bd3 {[%clk 0:07:55.5]} 16...
c6 {[%clk 0:09:28.6]} 17. Bf4 {[%clk 0:07:42.3]} 17... cxd5 {[%clk 0:08:18.3]}
18. cxd5 {[%clk 0:07:39.3]} 18... Rc8 {[%clk 0:07:54.5]} 19. Qa4 {[%clk
0:07:21.8]} 19... Bxd5 {[%clk 0:07:10]} 20. Re1 {[%clk 0:07:16]} 20... Be6
{[%clk 0:07:11]} 21. Qxa7 {[%clk 0:07:07]} 21... Nc4 {[%clk 0:06:47.3]} 22. b3
{[%clk 0:05:30.2]} 22... Nb2 {[%clk 0:06:45.9]} 23. Ba6 {[%clk 0:05:25.6]} 23...
Re8 {[%clk 0:06:00.4]} 24. Bb5 {[%clk 0:04:50.4]} 24... Qb4 {[%clk 0:05:56.2]}
25. Rxe6 {[%clk 0:03:28.4]} 25... Rxe6 {[%clk 0:05:52.1]} 26. Qxd7 {[%clk
0:03:16.8]} 26... h6 {[%clk 0:05:28.3]} 27. Be3 {[%clk 0:03:11.9]} 27... Rd6
{[%clk 0:05:08.7]} 28. Qe8+ {[%clk 0:03:06.6]} 28... Kh7 {[%clk 0:05:10]} 29. h3
{[%clk 0:02:32.3]} 29... Re6 {[%clk 0:04:37.4]} 30. Qd7 {[%clk 0:02:21.5]} 30...
Rd6 {[%clk 0:04:38.6]} 31. Qe8 {[%clk 0:02:21]} 31... Nd1 {[%clk 0:03:30.8]} 32.
Bd7 {[%clk 0:01:41.3]} 32... Nxe3 {[%clk 0:03:21.2]} 33. fxe3 {[%clk 0:01:34.3]}
33... Rd1+ {[%clk 0:02:38.6]} 34. Kf2 {[%clk 0:01:32.4]} 34... Qe7 {[%clk
0:01:54.5]} 35. Qxe7 {[%clk 0:01:14.1]} 35... Bxe7 {[%clk 0:01:56.4]} 36. Bb5
{[%clk 0:01:14.5]} 36... Bc5 {[%clk 0:01:54.6]} 37. Bc4 {[%clk 0:01:08.8]} 37...
f5 {[%clk 0:01:52.4]} 38. Ke2 {[%clk 0:00:52.9]} 38... Ra1 {[%clk 0:01:53.4]}
39. a4 {[%clk 0:00:53.9]} 39... Ra2+ {[%clk 0:01:52.3]} 40. Kd3 {[%clk
0:00:53.8]} 40... Rxg2 {[%clk 0:01:51.3]} 41. Be6 {[%clk 0:00:54.7]} 41... g6
{[%clk 0:01:51.1]} 42. h4 {[%clk 0:00:54.5]} 42... Kg7 {[%clk 0:01:35.2]} 43.
Bd5 {[%clk 0:00:55.1]} 43... Rg3 {[%clk 0:01:32.4]} 44. Ke2 {[%clk 0:00:46.7]}
44... g5 {[%clk 0:01:33.7]} 45. hxg5 {[%clk 0:00:39.5]} 45... hxg5 {[%clk
0:01:35.6]} 46. e4 {[%clk 0:00:33.1]} 46... g4 {[%clk 0:01:26.7]} 47. Nh4 {[%clk
0:00:32.1]} 47... Re3+ {[%clk 0:01:04.8]} 48. Kd2 {[%clk 0:00:32.8]} 48... Kf6
{[%clk 0:01:01.9]} 49. Nxf5 {[%clk 0:00:33.6]} 49... Rf3 {[%clk 0:01:01.7]} 50.
Nh4 {[%clk 0:00:19]} 50... Rf2+ {[%clk 0:01:02.5]} 51. Ke1 {[%clk 0:00:20]}
51... g3 {[%clk 0:00:55.4]} 52. Bc6 {[%clk 0:00:15.1]} 52... Ke5 {[%clk
0:00:55.1]} 53. Bb5 {[%clk 0:00:05.2]} 53... Bb4+ {[%clk 0:00:55]} 54. Kd1
{[%clk 0:00:05.7]} 54... g2 {[%clk 0:00:56.5]} 55. Nxg2 {[%clk 0:00:06.7]} 55...
Rxg2 {[%clk 0:00:58.4]} 0-1

[Event "GrandPrix_30.05"]
[Site "Chess.com"]
[Date "2020.05.30"]
[Round "7"]
[White "Sakkcapak"]
[Black "Yuri202062"]
[Result "0-1"]
[WhiteElo "2121"]
[BlackElo "2073"]
[TimeControl "600+2"]
[EndTime "11:29:03 PDT"]
[Termination "Yuri202062 won by resignation"]

1. c4 {[%clk 0:10:01.9]} 1... e6 {[%clk 0:10:00.4]} 2. g3 {[%clk 0:10:02.5]}
2... d5 {[%clk 0:10:01.1]} 3. Bg2 {[%clk 0:10:03]} 3... Nf6 {[%clk 0:10:02]} 4.
Nf3 {[%clk 0:10:03.8]} 4... dxc4 {[%clk 0:10:02.8]} 5. Qa4+ {[%clk 0:10:02.8]}
5... Nbd7 {[%clk 0:10:03.5]} 6. Qxc4 {[%clk 0:10:03.7]} 6... a6 {[%clk
0:10:03.6]} 7. Qc2 {[%clk 0:09:51.9]} 7... c5 {[%clk 0:10:02.7]} 8. a4 {[%clk
0:09:51.3]} 8... b6 {[%clk 0:09:58.5]} 9. O-O {[%clk 0:09:51.1]} 9... Bb7 {[%clk
0:09:59.2]} 10. Nc3 {[%clk 0:09:49]} 10... Be7 {[%clk 0:09:58.5]} 11. d4 {[%clk
0:09:16.2]} 11... O-O {[%clk 0:09:45]} 12. dxc5 {[%clk 0:09:02.9]} 12... Bxc5
{[%clk 0:09:39.9]} 13. Bf4 {[%clk 0:08:56.9]} 13... Rc8 {[%clk 0:09:35.3]} 14.
Qd3 {[%clk 0:08:19.7]} 14... Qe7 {[%clk 0:09:32.5]} 15. Rfd1 {[%clk 0:08:10.9]}
15... e5 {[%clk 0:08:13.3]} 16. Nxe5 {[%clk 0:05:41.2]} 16... Nxe5 {[%clk
0:08:12.3]} 17. Bxe5 {[%clk 0:05:38.2]} 17... Bxf2+ {[%clk 0:07:20.9]} 18. Kxf2
{[%clk 0:05:00]} 18... Ng4+ {[%clk 0:07:19.8]} 19. Kg1 {[%clk 0:04:57.8]} 19...
Nxe5 {[%clk 0:07:16.6]} 20. Qd4 {[%clk 0:04:24.5]} 20... Bxg2 {[%clk 0:06:14.8]}
21. Kxg2 {[%clk 0:04:26.4]} 21... Nc4 {[%clk 0:06:15.4]} 22. e4 {[%clk
0:03:29.4]} 22... Nxb2 {[%clk 0:06:07.5]} 23. Nd5 {[%clk 0:03:25.9]} 23... Rc2+
{[%clk 0:05:36]} 24. Kh1 {[%clk 0:03:26.2]} 24... Qc5 {[%clk 0:04:22.9]} 25. Rd2
{[%clk 0:02:45.9]} 25... Rxd2 {[%clk 0:04:03]} 26. Qxd2 {[%clk 0:02:47.8]} 26...
Nc4 {[%clk 0:04:03.6]} 27. Qc3 {[%clk 0:02:32.1]} 27... b5 {[%clk 0:03:50]} 28.
axb5 {[%clk 0:02:30.2]} 28... axb5 {[%clk 0:03:50.5]} 29. Rb1 {[%clk 0:02:27.6]}
29... h6 {[%clk 0:03:39.8]} 30. Qb4 {[%clk 0:02:03.8]} 30... Qd4 {[%clk
0:03:11.3]} 31. Re1 {[%clk 0:01:37.5]} 31... Qf2 {[%clk 0:02:26.5]} 32. Ne7+
{[%clk 0:01:35.9]} 32... Kh7 {[%clk 0:02:16.1]} 33. Qc3 {[%clk 0:01:11.6]} 33...
b4 {[%clk 0:01:43.7]} 34. Qc1 {[%clk 0:00:36.2]} 34... Nd2 {[%clk 0:01:05.9]}
35. Qd1 {[%clk 0:00:34.7]} 35... b3 {[%clk 0:00:54.7]} 36. Re2 {[%clk
0:00:23.7]} 36... Qf3+ {[%clk 0:00:53]} 37. Kg1 {[%clk 0:00:24.5]} 37... Nxe4
{[%clk 0:00:47.5]} 38. Qe1 {[%clk 0:00:20.9]} 38... Ng5 {[%clk 0:00:39.5]} 39.
h4 {[%clk 0:00:18.3]} 39... Ne6 {[%clk 0:00:29.9]} 40. Re3 {[%clk 0:00:17.7]}
40... Qb7 {[%clk 0:00:26.5]} 41. Qb1+ {[%clk 0:00:17.1]} 41... Kh8 {[%clk
0:00:25.2]} 42. Nf5 {[%clk 0:00:18.1]} 42... b2 {[%clk 0:00:22.9]} 43. Re2
{[%clk 0:00:17.1]} 43... Rb8 {[%clk 0:00:21.6]} 44. Ne3 {[%clk 0:00:15.2]} 44...
Qf3 {[%clk 0:00:18.5]} 45. Re1 {[%clk 0:00:10.8]} 45... Qxg3+ {[%clk 0:00:18.9]}
46. Ng2 {[%clk 0:00:12.4]} 46... Nf4 {[%clk 0:00:17.4]} 47. Qc2 {[%clk
0:00:06.5]} 47... Qxg2+ {[%clk 0:00:16.9]} 0-1

[Event "GrandPrix_30.05"]
[Site "Chess.com"]
[Date "2020.05.30"]
[Round "7"]
[White "GeorgMeier"]
[Black "EvgenyRomanov"]
[Result "1-0"]
[WhiteElo "2629"]
[BlackElo "2285"]
[TimeControl "600+2"]
[EndTime "11:29:04 PDT"]
[Termination "GeorgMeier won on time"]

1. Nf3 {[%clk 0:10:01.9]} 1... Nf6 {[%clk 0:09:57.3]} 2. g3 {[%clk 0:10:03.4]}
2... b6 {[%clk 0:09:55.3]} 3. Bg2 {[%clk 0:10:04]} 3... Bb7 {[%clk 0:09:57.2]}
4. c4 {[%clk 0:10:05.5]} 4... g6 {[%clk 0:09:58.2]} 5. O-O {[%clk 0:10:06.1]}
5... Bg7 {[%clk 0:10:00.1]} 6. d4 {[%clk 0:10:07.6]} 6... O-O {[%clk 0:10:01]}
7. d5 {[%clk 0:10:09]} 7... Na6 {[%clk 0:10:01]} 8. Nc3 {[%clk 0:10:09.1]} 8...
Nc5 {[%clk 0:10:01.8]} 9. Qc2 {[%clk 0:09:57.7]} 9... e6 {[%clk 0:10:00.9]} 10.
Rd1 {[%clk 0:09:58.3]} 10... exd5 {[%clk 0:09:58.5]} 11. cxd5 {[%clk 0:09:54.8]}
11... Re8 {[%clk 0:09:53.3]} 12. Bf4 {[%clk 0:09:47.9]} 12... a5 {[%clk
0:09:34.8]} 13. Rac1 {[%clk 0:09:47.2]} 13... Ba6 {[%clk 0:08:59.5]} 14. b3
{[%clk 0:08:52.7]} 14... h6 {[%clk 0:08:32.9]} 15. Be5 {[%clk 0:08:36]} 15...
Rc8 {[%clk 0:07:40.2]} 16. Bd4 {[%clk 0:08:30]} 16... Qe7 {[%clk 0:06:17.7]} 17.
e3 {[%clk 0:07:10.3]} 17... Qd6 {[%clk 0:06:14.2]} 18. Nd2 {[%clk 0:05:53.3]}
18... Nd3 {[%clk 0:04:35.5]} 19. Bxf6 {[%clk 0:05:53.7]} 19... Nb4 {[%clk
0:04:18.4]} 20. Nde4 {[%clk 0:05:41.7]} 20... Nxc2 {[%clk 0:02:33.7]} 21. Nxd6
{[%clk 0:05:40.4]} 21... cxd6 {[%clk 0:02:33.2]} 22. Bxg7 {[%clk 0:05:40.7]}
22... Kxg7 {[%clk 0:02:33.7]} 23. Rxc2 {[%clk 0:05:35.1]} 23... Rc5 {[%clk
0:02:32.6]} 24. Bf1 {[%clk 0:03:23]} 24... Bxf1 {[%clk 0:02:30.5]} 25. Kxf1
{[%clk 0:03:24]} 25... Rec8 {[%clk 0:02:32.1]} 26. Rdc1 {[%clk 0:03:23.9]} 26...
b5 {[%clk 0:02:31.4]} 27. Ke2 {[%clk 0:03:19.3]} 27... b4 {[%clk 0:02:32]} 28.
e4 {[%clk 0:03:18.4]} 28... f5 {[%clk 0:02:16.8]} 29. Kd3 {[%clk 0:03:01.4]}
29... bxc3 {[%clk 0:02:04]} 30. Rxc3 {[%clk 0:03:01]} 30... fxe4+ {[%clk
0:01:58.3]} 31. Kd4 {[%clk 0:03:02.1]} 31... Rf8 {[%clk 0:01:53.5]} 32. Rxc5
{[%clk 0:01:33.8]} 32... dxc5+ {[%clk 0:01:55.4]} 33. Rxc5 {[%clk 0:01:33.3]}
33... Rxf2 {[%clk 0:01:55.4]} 34. Rxa5 {[%clk 0:01:24.7]} 34... Rxh2 {[%clk
0:01:55.2]} 35. Kxe4 {[%clk 0:01:16.7]} 35... Kf6 {[%clk 0:01:52.3]} 36. a4
{[%clk 0:01:12.9]} 36... Kg5 {[%clk 0:01:48.3]} 37. Ra6 {[%clk 0:00:50.7]} 37...
Re2+ {[%clk 0:01:37.9]} 38. Kf3 {[%clk 0:00:49.1]} 38... Rd2 {[%clk 0:01:31.4]}
39. Rb6 {[%clk 0:00:50.4]} 39... h5 {[%clk 0:00:59.9]} 40. a5 {[%clk 0:00:46.3]}
40... Kf5 {[%clk 0:01:00.7]} 41. Rb4 {[%clk 0:00:35.7]} 41... g5 {[%clk
0:00:41.4]} 42. a6 {[%clk 0:00:34.1]} 42... g4+ {[%clk 0:00:22.4]} 43. Ke3
{[%clk 0:00:35]} 43... Ra2 {[%clk 0:00:23.5]} 44. Ra4 {[%clk 0:00:35.7]} 44...
Rc2 {[%clk 0:00:24.5]} 45. b4 {[%clk 0:00:23.5]} 45... h4 {[%clk 0:00:10.1]} 46.
a7 {[%clk 0:00:23.7]} 46... Rc3+ {[%clk 0:00:04.7]} 47. Kd4 {[%clk 0:00:18.1]}
1-0

[Event "GrandPrix_30.05"]
[Site "Chess.com"]
[Date "2020.05.30"]
[Round "7"]
[White "IriBu"]
[Black "PresidenteMNE"]
[Result "1/2-1/2"]
[WhiteElo "2198"]
[BlackElo "2113"]
[TimeControl "600+2"]
[EndTime "11:29:06 PDT"]
[Termination "Game drawn by repetition"]

1. e4 {[%clk 0:10:01.9]} 1... g6 {[%clk 0:09:50.2]} 2. d4 {[%clk 0:10:01.4]}
2... Bg7 {[%clk 0:09:52.1]} 3. Nf3 {[%clk 0:10:01.7]} 3... d6 {[%clk 0:09:53.3]}
4. Bd3 {[%clk 0:09:58.6]} 4... Nf6 {[%clk 0:09:53.9]} 5. c3 {[%clk 0:09:58]}
5... O-O {[%clk 0:09:54.9]} 6. O-O {[%clk 0:09:57.9]} 6... Nc6 {[%clk
0:09:56.2]} 7. h3 {[%clk 0:09:56.3]} 7... e5 {[%clk 0:09:57.3]} 8. dxe5 {[%clk
0:09:54.9]} 8... dxe5 {[%clk 0:09:57.7]} 9. Qe2 {[%clk 0:09:49.2]} 9... Nh5
{[%clk 0:09:58.8]} 10. Bg5 {[%clk 0:09:45.5]} 10... Qe8 {[%clk 0:09:58.5]} 11.
Na3 {[%clk 0:09:31.2]} 11... a6 {[%clk 0:09:56]} 12. Rfe1 {[%clk 0:09:16.1]}
12... b5 {[%clk 0:09:40.6]} 13. Nc2 {[%clk 0:09:13.3]} 13... Be6 {[%clk
0:09:35.8]} 14. a4 {[%clk 0:09:08.8]} 14... bxa4 {[%clk 0:09:35.9]} 15. Rxa4
{[%clk 0:09:05.5]} 15... Nd4 {[%clk 0:09:24.9]} 16. cxd4 {[%clk 0:08:41]} 16...
Qxa4 {[%clk 0:09:23.7]} 17. dxe5 {[%clk 0:08:40.1]} 17... h6 {[%clk 0:08:56.2]}
18. Bd2 {[%clk 0:08:16.9]} 18... Rfd8 {[%clk 0:08:26.6]} 19. Be3 {[%clk
0:07:09.4]} 19... Rab8 {[%clk 0:08:24.3]} 20. Ncd4 {[%clk 0:06:53.4]} 20... Qa2
{[%clk 0:07:23.3]} 21. Nxe6 {[%clk 0:06:19.2]} 21... fxe6 {[%clk 0:07:20.8]} 22.
Bc4 {[%clk 0:05:48.6]} 22... Qxb2 {[%clk 0:07:19.7]} 23. Bxe6+ {[%clk
0:05:47.1]} 23... Kh7 {[%clk 0:07:20]} 24. Qxb2 {[%clk 0:04:50.1]} 24... Rxb2
{[%clk 0:07:21.9]} 25. g4 {[%clk 0:04:47.5]} 25... Rf8 {[%clk 0:07:22.8]} 26.
gxh5 {[%clk 0:04:10.6]} 26... Rxf3 {[%clk 0:07:21.9]} 27. hxg6+ {[%clk
0:04:03.9]} 27... Kxg6 {[%clk 0:07:20.6]} 28. Bf5+ {[%clk 0:03:03.5]} 28... Rxf5
{[%clk 0:07:20.6]} 29. exf5+ {[%clk 0:03:05.4]} 29... Kxf5 {[%clk 0:07:22.3]}
30. e6 {[%clk 0:02:44.1]} 30... Rb8 {[%clk 0:07:00.5]} 31. e7 {[%clk 0:02:42.8]}
31... Re8 {[%clk 0:06:58]} 32. Bc5 {[%clk 0:02:41.6]} 32... a5 {[%clk
0:06:38.8]} 33. Rd1 {[%clk 0:02:35.8]} 33... Ke6 {[%clk 0:06:31.3]} 34. Rd8
{[%clk 0:02:30.9]} 34... Kf7 {[%clk 0:06:25.8]} 35. Rd7 {[%clk 0:02:31.8]} 35...
Be5 {[%clk 0:06:24.8]} 36. Kg2 {[%clk 0:02:23.4]} 36... a4 {[%clk 0:06:07.8]}
37. Kf3 {[%clk 0:02:11.1]} 37... h5 {[%clk 0:05:05.6]} 38. Ba3 {[%clk
0:02:00.6]} 38... Bd6 {[%clk 0:04:47]} 39. Bxd6 {[%clk 0:01:56.3]} 39... cxd6
{[%clk 0:04:48.9]} 40. Rxd6 {[%clk 0:01:38.5]} 40... Rxe7 {[%clk 0:04:30.5]} 41.
Ra6 {[%clk 0:01:38.8]} 41... Rb7 {[%clk 0:04:25.3]} 42. Rxa4 {[%clk 0:01:35.4]}
42... Rb3+ {[%clk 0:04:26]} 43. Kg2 {[%clk 0:01:33.4]} 43... Kg6 {[%clk
0:04:25.3]} 44. f3 {[%clk 0:01:28.5]} 44... Rb1 {[%clk 0:04:16]} 45. Kg3 {[%clk
0:01:22]} 45... Rg1+ {[%clk 0:04:14.6]} 46. Kf4 {[%clk 0:01:10.4]} 46... h4
{[%clk 0:04:06.5]} 47. Ra6+ {[%clk 0:01:09]} 47... Kh5 {[%clk 0:04:07]} 48. Ra8
{[%clk 0:01:04.2]} 48... Rb1 {[%clk 0:03:45.1]} 49. Rh8+ {[%clk 0:00:58.1]}
49... Kg6 {[%clk 0:03:45.4]} 50. Rxh4 {[%clk 0:00:58.4]} 50... Rb4+ {[%clk
0:03:44.8]} 51. Kg3 {[%clk 0:00:59.3]} 51... Rb3 {[%clk 0:03:40.4]} 52. Rc4
{[%clk 0:00:59.7]} 52... Rb1 {[%clk 0:03:39.8]} 53. h4 {[%clk 0:00:50]} 53...
Rg1+ {[%clk 0:03:36.3]} 54. Kf4 {[%clk 0:00:50.6]} 54... Kh7 {[%clk 0:03:29.9]}
55. Rc7+ {[%clk 0:00:48.7]} 55... Kh6 {[%clk 0:03:30.3]} 56. Rc6+ {[%clk
0:00:48.9]} 56... Kh7 {[%clk 0:03:30.9]} 57. Rc5 {[%clk 0:00:45.6]} 57... Kh6
{[%clk 0:03:27.5]} 58. Rc6+ {[%clk 0:00:38.9]} 58... Kh7 {[%clk 0:03:27.7]} 59.
Rc4 {[%clk 0:00:37.2]} 59... Kh6 {[%clk 0:03:25.9]} 60. Kf5 {[%clk 0:00:35.5]}
60... Ra1 {[%clk 0:03:24.4]} 61. Rc6+ {[%clk 0:00:33.1]} 61... Kh5 {[%clk
0:03:17]} 62. f4 {[%clk 0:00:25.9]} 62... Ra5+ {[%clk 0:02:48.9]} 63. Kf6 {[%clk
0:00:24.4]} 63... Kxh4 {[%clk 0:02:42]} 64. f5 {[%clk 0:00:24.8]} 64... Kh5
{[%clk 0:02:40]} 65. Ke6 {[%clk 0:00:18.6]} 65... Kg5 {[%clk 0:02:38.3]} 66. f6
{[%clk 0:00:14.8]} 66... Kg6 {[%clk 0:02:34.5]} 67. Rd6 {[%clk 0:00:04]} 67...
Ra1 {[%clk 0:02:28.3]} 68. Ke7 {[%clk 0:00:04.6]} 68... Ra7+ {[%clk 0:02:24.5]}
69. Ke6 {[%clk 0:00:05.9]} 69... Rf7 {[%clk 0:02:19.5]} 70. Ke5 {[%clk
0:00:05.6]} 70... Rf8 {[%clk 0:02:17]} 71. Rc6 {[%clk 0:00:05.7]} 71... Re8+
{[%clk 0:02:12.2]} 72. Re6 {[%clk 0:00:06.3]} 72... Rf8 {[%clk 0:02:13.2]} 73.
Rc6 {[%clk 0:00:03.9]} 73... Re8+ {[%clk 0:02:13.7]} 74. Kf4 {[%clk 0:00:05.1]}
74... Rf8 {[%clk 0:02:12.9]} 75. Ke5 {[%clk 0:00:06.5]} 1/2-1/2

[Event "GrandPrix_30.05"]
[Site "Chess.com"]
[Date "2020.05.30"]
[Round "7"]
[White "caspiwins"]
[Black "Zakaryan_David"]
[Result "0-1"]
[WhiteElo "2235"]
[BlackElo "1804"]
[TimeControl "600+2"]
[EndTime "11:29:11 PDT"]
[Termination "Zakaryan_David won by resignation"]

1. e4 {[%clk 0:10:01.9]} 1... c5 {[%clk 0:09:54]} 2. Nf3 {[%clk 0:10:00.4]} 2...
Nc6 {[%clk 0:09:46.8]} 3. d4 {[%clk 0:10:01.4]} 3... cxd4 {[%clk 0:09:46]} 4.
Nxd4 {[%clk 0:10:03.3]} 4... Qc7 {[%clk 0:09:45.3]} 5. Nc3 {[%clk 0:10:02.7]}
5... e6 {[%clk 0:09:45.2]} 6. Be3 {[%clk 0:10:03.3]} 6... a6 {[%clk 0:09:42.4]}
7. Qd2 {[%clk 0:10:02]} 7... Nf6 {[%clk 0:09:36.1]} 8. O-O-O {[%clk 0:10:02.8]}
8... Bb4 {[%clk 0:09:34.2]} 9. f3 {[%clk 0:10:02.4]} 9... Ne5 {[%clk 0:08:57.9]}
10. Nb3 {[%clk 0:10:02.9]} 10... b5 {[%clk 0:08:51.7]} 11. Kb1 {[%clk
0:10:03.8]} 11... Be7 {[%clk 0:08:42.6]} 12. Qf2 {[%clk 0:08:06.4]} 12... O-O
{[%clk 0:08:32.8]} 13. Bb6 {[%clk 0:08:05.1]} 13... Qb8 {[%clk 0:08:25.8]} 14.
Na5 {[%clk 0:07:38]} 14... d6 {[%clk 0:08:11.7]} 15. f4 {[%clk 0:07:32.2]} 15...
Neg4 {[%clk 0:08:06.2]} 16. Qg1 {[%clk 0:07:31.1]} 16... Bb7 {[%clk 0:07:49.4]}
17. h3 {[%clk 0:07:08.2]} 17... Nh6 {[%clk 0:07:45.2]} 18. e5 {[%clk 0:06:52.9]}
18... dxe5 {[%clk 0:07:40.8]} 19. fxe5 {[%clk 0:06:51.9]} 19... Nd5 {[%clk
0:07:40.8]} 20. Nxb7 {[%clk 0:06:39]} 20... Nxc3+ {[%clk 0:07:29.3]} 21. bxc3
{[%clk 0:06:40.9]} 21... Qxb7 {[%clk 0:07:27.7]} 22. g4 {[%clk 0:06:42.3]} 22...
Rab8 {[%clk 0:07:20.9]} 23. Bd4 {[%clk 0:06:35.2]} 23... Rfc8 {[%clk 0:07:18.7]}
24. Bg2 {[%clk 0:06:31.4]} 24... Qc7 {[%clk 0:07:15.3]} 25. Qf1 {[%clk
0:05:31.1]} 25... b4 {[%clk 0:07:04.3]} 26. c4 {[%clk 0:05:31.7]} 26... a5
{[%clk 0:06:40.9]} 27. Be4 {[%clk 0:04:48.4]} 27... a4 {[%clk 0:06:35.9]} 28.
Kb2 {[%clk 0:04:38.2]} 28... Bc5 {[%clk 0:05:57]} 29. Qf4 {[%clk 0:04:13.9]}
29... Bxd4+ {[%clk 0:05:50.6]} 30. Rxd4 {[%clk 0:04:15.8]} 30... a3+ {[%clk
0:05:31.5]} 31. Kc1 {[%clk 0:03:40]} 31... f6 {[%clk 0:05:29.2]} 32. Rd6 {[%clk
0:03:15.9]} 32... fxe5 {[%clk 0:05:19.6]} 33. Qd2 {[%clk 0:02:52.7]} 33... Qxc4
{[%clk 0:05:12.8]} 34. Qd3 {[%clk 0:02:53.8]} 34... Qxa2 {[%clk 0:04:30.4]} 35.
Rxe6 {[%clk 0:02:20.8]} 35... b3 {[%clk 0:03:54.8]} 36. Rc6 {[%clk 0:02:18.3]}
36... Rxc6 {[%clk 0:03:41.7]} 37. Bxc6 {[%clk 0:02:20.2]} 37... Qb2+ {[%clk
0:02:38]} 38. Kd2 {[%clk 0:02:18]} 38... bxc2 {[%clk 0:02:29.2]} 39. Bd5+ {[%clk
0:01:45.4]} 39... Kh8 {[%clk 0:02:27]} 40. Rc1 {[%clk 0:01:37.5]} 40... Rf8
{[%clk 0:01:46.7]} 41. Bb3 {[%clk 0:00:47.9]} 41... Rf2+ {[%clk 0:01:25.3]} 42.
Ke3 {[%clk 0:00:48.8]} 42... Qxc1+ {[%clk 0:01:17.7]} 43. Kxf2 {[%clk
0:00:49.8]} 43... Qd1 {[%clk 0:00:44.5]} 44. Qa6 {[%clk 0:00:19.2]} 44... Qd2+
{[%clk 0:00:31.7]} 45. Kg3 {[%clk 0:00:19.6]} 45... Qc3+ {[%clk 0:00:31.4]} 46.
Kh4 {[%clk 0:00:20.6]} 46... c1=Q {[%clk 0:00:25.2]} 47. Qd6 {[%clk 0:00:14.1]}
47... Qxb3 {[%clk 0:00:19]} 48. Qf8+ {[%clk 0:00:13.8]} 48... Qg8 {[%clk
0:00:18.4]} 0-1